[Event "Marshall CC FIDE Premier August 2024"]
[Site "New York"]
[Date "2024.08.03"]
[Round "1.1"]
[White "Bortnyk, Mykola"]
[Black "Gutnik, Aleksandr"]
[Result "1-0"]
[ECO "C10"]
[WhiteElo "2432"]
[BlackElo "2001"]
[Annotator "RC"]
[PlyCount "49"]
[EventDate "2024.08.02"]
[EventType "swiss"]
[EventCountry "USA"]
[SourceTitle "playchess.com"]
[Source "ChessBase"]
[SourceQuality "1"]
[TimeControl "5400+30"]

1. e4 {[%emt 0:03:06]} e6 {[%emt 0:00:47]} 2. d4 {[%emt 0:00:19]} d5 {[%emt 0:00:09]} 3. Nd2 {[%emt 0:00:05]} dxe4 {[%emt 0:00:08]} 4. Nxe4 {[%emt 0:00:05]} Nf6 {[%emt 0:00:06]} 5. Nxf6+ {[%emt 0:00:58]} gxf6 {[%emt 0:00:09]} 6. Nf3 {[%emt 0:00:06]} Nc6 {[%emt 0:00:32]} 7. Bb5 {[%emt 0:01:15]} Qd6 {[%emt 0:03:15]} 8. O-O {[%emt 0:01:29]} Bd7 {[%emt 0:00:50]} 9. c4 {[%emt 0:03:50]} Ne7 {[%emt 0:06:00]} 10. a4 {[%emt 0:09:03]} a6 {[%emt 0:12:04]} 11. Bxd7+ {[%emt 0:01:51]} Qxd7 {[%emt 0:00:12]} 12. b4 {[%emt 0:00:57]} Bg7 {[%emt 0:02:13]} 13. Bf4 {[%emt 0:01:14]} O-O {[%emt 0:02:02]} 14. Qe2 {[%emt 0:01:18]} Rfd8 {[%emt 0:03:53]} 15. Rfd1 {[%emt 0:01:31]} c6 {[%emt 0:03:37]} 16. h4 {[%emt 0:01:15]} b5 {[%emt 0:03:05]} 17. h5 {[%emt 0:03:16]} bxc4 {[%emt 0:02:31]} 18. h6 {[%emt 0:03:38]} Bf8 {[%emt 0:00:46]} 19. Nd2 {[%emt 0:00:28]} Nd5 {[%emt 0:08:28]} 20. Ne4 {[%emt 0:00:26]} Kh8 {[%emt 0:01:24]} 21. Nxf6 {[%emt 0:00:44]} Nxf6 {[%emt 0:09:17]} 22. Be5 {[%emt 0:00:05]} Bxh6 {[%emt 0:04:31]} 23. Bxf6+ {[%emt 0:00:08]} Bg7 {[%emt 0:00:10]} 24. Bxd8 {[%emt 0:00:14]} Rxd8 {[%emt 0:00:30]} 25. Qxc4 {[%emt 0:00:08]} 1-0

[Event "Marshall CC FIDE Premier August 2024"]
[Site "New York"]
[Date "2024.08.03"]
[Round "1.2"]
[White "Zagar, Dane"]
[Black "Nakada, Akira"]
[Result "0-1"]
[ECO "E14"]
[WhiteElo "1959"]
[BlackElo "2417"]
[Annotator "ChessBase"]
[PlyCount "36"]
[EventDate "2024.08.02"]
[EventType "swiss"]
[EventCountry "USA"]
[SourceTitle "playchess.com"]
[Source "ChessBase"]
[SourceQuality "1"]
[TimeControl "5400+30"]

1. d4 {[%emt 0:00:07]} Nf6 {[%emt 0:00:07]} 2. Nf3 {[%emt 0:00:08]} d5 {[%emt 0:00:12]} 3. e3 {[%emt 0:00:57]} e6 {[%emt 0:00:15]} 4. Bd3 {[%emt 0:00:14]} Bd6 {[%emt 0:00:07]} 5. b3 {[%emt 0:00:29]} b6 {[%emt 0:00:40]} 6. Bb2 {[%emt 0:04:50]} Bb7 {[%emt 0:00:06]} 7. c4 {[%emt 0:07:00]} O-O {[%emt 0:00:38]} 8. O-O {[%emt 0:00:23]} Nbd7 {[%emt 0:00:46]} 9. Ne5 {[%emt 0:01:52]} c5 {[%emt 0:01:20]} 10. Nxd7 {[%emt 0:14:15]} Nxd7 {[%emt 0:00:15]} 11. Qc2 {[%emt 0:00:49]} dxc4 {[%emt 0:03:56]} 12. bxc4 {[%emt 0:01:13]} Qh4 {[%emt 0:01:17]} 13. g3 {[%emt 0:02:54]} Qh5 {[%emt 0:08:42]} 14. Nd2 {[%emt 0:06:35]} Nf6 {[%emt 0:00:42]} 15. dxc5 {[%emt 0:05:24]} Ng4 {[%emt 0:00:33]} 16. h4 {[%emt 0:03:15]} Qxh4 {[%emt 0:00:09]} 17. Bxh7+ {[%emt 0:01:34]} Kh8 {[%emt 0:00:05]} 18. gxh4 {[%emt 0:02:49]} Bh2# {[%emt 0:00:06]} 0-1

[Event "Marshall CC FIDE Premier August 2024"]
[Site "New York"]
[Date "2024.08.03"]
[Round "1.3"]
[White "Lin, Bryan Enming"]
[Black "Gaw, Chloe"]
[Result "1-0"]
[ECO "B56"]
[WhiteElo "2155"]
[BlackElo "1981"]
[Annotator "ChessBase"]
[PlyCount "115"]
[EventDate "2024.08.02"]
[EventType "swiss"]
[EventCountry "USA"]
[SourceTitle "playchess.com"]
[Source "ChessBase"]
[SourceQuality "1"]
[TimeControl "5400+30"]

1. e4 {[%emt 0:00:03]} c5 {[%emt 0:00:02]} 2. Nf3 {[%emt 0:00:15]} d6 {[%emt 0:00:03]} 3. d4 {[%emt 0:00:13]} cxd4 {[%emt 0:00:04]} 4. Nxd4 {[%emt 0:00:13]} Nf6 {[%emt 0:00:04]} 5. Nc3 {[%emt 0:00:28]} Nc6 {[%emt 0:00:06]} 6. f3 {[%emt 0:00:09]} e5 {[%emt 0:00:07]} 7. Nb3 {[%emt 0:00:08]} Be7 {[%emt 0:00:13]} 8. Be3 {[%emt 0:00:09]} Be6 {[%emt 0:00:05]} 9. Qe2 {[%emt 0:00:07]} O-O {[%emt 0:00:14]} 10. O-O-O {[%emt 0:00:15]} Qc8 {[%emt 0:01:38]} 11. Kb1 {[%emt 0:02:45]} Rd8 {[%emt 0:03:35]} 12. g4 {[%emt 0:02:48]} d5 {[%emt 0:07:22]} 13. g5 {[%emt 0:01:11]} Nxe4 {[%emt 0:06:13]} 14. Nxe4 {[%emt 0:04:05]} dxe4 {[%emt 0:00:17]} 15. fxe4 {[%emt 0:00:34]} a5 {[%emt 0:16:24]} 16. Bg2 {[%emt 0:09:50]} a4 {[%emt 0:05:04]} 17. Rxd8+ {[%emt 0:04:35]} Nxd8 {[%emt 0:02:49]} 18. Nc1 {[%emt 0:00:44]} Nc6 {[%emt 0:12:33]} 19. Nd3 {[%emt 0:05:34]} Bc4 {[%emt 0:04:49]} 20. Qd2 {[%emt 0:02:14]} Qe6 {[%emt 0:03:38]} 21. Nc1 {[%emt 0:05:40]} Rc8 {[%emt 0:09:17]} 22. h4 {[%emt 0:06:50]} Nb4 {[%emt 0:06:45]} 23. b3 {[%emt 0:00:58]} Rd8 {[%emt 0:05:15]} 24. Qc3 {[%emt 0:02:31]} axb3 {[%emt 0:00:16]} 25. axb3 {[%emt 0:00:17]} Bb5 {[%emt 0:02:50]} 26. Bh3 {[%emt 0:02:43]} Qa6 {[%emt 0:03:56]} 27. Qxe5 {[%emt 0:05:03]} Qc6 {[%emt 0:02:28]} 28. c4 {[%emt 0:08:45]} Bd6 {[%emt 0:04:02]} 29. Rd1 {[%emt 0:02:06]} Re8 {[%emt 0:02:49]} 30. Qxd6 {[%emt 0:01:24]} Qxe4+ {[%emt 0:00:02]} 31. Nd3 {[%emt 0:01:11]} Qxe3 {[%emt 0:01:55]} 32. cxb5 {[%emt 0:04:37]} Na2 {[%emt 0:01:02]} 33. Kxa2 {[%emt 0:01:25]} Ra8+ {[%emt 0:00:27]} 34. Kb1 {[%emt 0:00:24]} Qxh3 {[%emt 0:00:32]} 35. Nc1 {[%emt 0:01:42]} g6 {[%emt 0:00:28]} 36. Qf6 {[%emt 0:02:02]} Qxh4 {[%emt 0:00:31]} 37. Rd8+ {[%emt 0:00:07]} Rxd8 {[%emt 0:00:02]} 38. Qxd8+ {[%emt 0:00:06]} Kg7 {[%emt 0:00:02]} 39. Nd3 {[%emt 0:25:49]} Qe4 {[%emt 0:00:48]} 40. b6 {[%emt 0:00:00]} Qe2 {[%emt 0:01:11]} 41. Qd4+ {[%emt 0:00:00]} Kg8 {[%emt 0:00:11]} 42. Nc5 {[%emt 0:00:00]} Qf1+ {[%emt 0:00:43]} 43. Kc2 {[%emt 0:00:00]} Qg2+ {[%emt 0:00:16]} 44. Qd2 {[%emt 0:00:00]} Qc6 {[%emt 0:00:19]} 45. Qd8+ {[%emt 0:00:00]} Kg7 {[%emt 0:00:02]} 46. Qc7 {[%emt 0:00:00]} Qg2+ {[%emt 0:00:08]} 47. Kc3 {[%emt 0:00:00]} Qf3+ {[%emt 0:00:59]} 48. Kb4 {[%emt 0:00:00]} Qg4+ {[%emt 0:00:25]} 49. Ka3 {[%emt 0:00:00]} Qf5 {[%emt 0:01:26]} 50. Nxb7 {[%emt 0:00:00]} Qxg5 {[%emt 0:00:15]} 51. Nc5 {[%emt 0:00:00]} Qc1+ {[%emt 0:00:13]} 52. Ka4 {[%emt 0:00:00]} Qa1+ {[%emt 0:00:11]} 53. Kb5 {[%emt 0:00:00]} Qf1+ {[%emt 0:00:05]} 54. Kc6 {[%emt 0:00:00]} Qf3+ {[%emt 0:00:33]} 55. Kd7 {[%emt 0:00:00]} Qg4+ {[%emt 0:01:14]} 56. Kd8 {[%emt 0:00:00]} Qg5+ {[%emt 0:00:28]} 57. Kc8 {[%emt 0:00:00]} Qf5+ {[%emt 0:00:19]} 58. Nd7 {[%emt 0:00:00]} 1-0

[Event "Marshall CC FIDE Premier August 2024"]
[Site "New York"]
[Date "2024.08.03"]
[Round "1.4"]
[White "Ayyappan, Santhosh"]
[Black "Brain, Logan"]
[Result "1-0"]
[ECO "A48"]
[WhiteElo "1970"]
[BlackElo "2132"]
[Annotator "RC"]
[PlyCount "91"]
[EventDate "2024.08.02"]
[EventType "swiss"]
[EventCountry "USA"]
[SourceTitle "playchess.com"]
[Source "ChessBase"]
[SourceQuality "1"]
[TimeControl "5400+30"]

1. d4 {[%emt 0:07:36]} Nf6 {[%emt 0:00:04]} 2. Bf4 {[%emt 0:00:50]} g6 {[%emt 0:00:07]} 3. Nf3 {[%emt 0:00:05]} Bg7 {[%emt 0:00:01]} 4. e3 {[%emt 0:00:13]} d6 {[%emt 0:00:10]} 5. c3 {[%emt 0:00:16]} O-O {[%emt 0:00:13]} 6. Bd3 {[%emt 0:00:05]} Nfd7 {[%emt 0:01:24]} 7. O-O {[%emt 0:00:38]} e5 {[%emt 0:00:14]} 8. Bg5 {[%emt 0:05:04]} Qe8 {[%emt 0:02:35]} 9. e4 {[%emt 0:01:23]} Nc6 {[%emt 0:00:27]} 10. Na3 {[%emt 0:04:47]} a6 {[%emt 0:02:20]} 11. Nc2 {[%emt 0:01:07]} Kh8 {[%emt 0:03:29]} 12. Qd2 {[%emt 0:06:45]} f6 {[%emt 0:15:00]} 13. Bh6 {[%emt 0:05:03]} Bxh6 {[%emt 0:02:27]} 14. Qxh6 {[%emt 0:00:08]} Qf7 {[%emt 0:02:25]} 15. Ne3 {[%emt 0:02:24]} Ne7 {[%emt 0:00:38]} 16. Bc4 {[%emt 0:05:16]} Qg7 {[%emt 0:01:10]} 17. Qxg7+ {[%emt 0:00:49]} Kxg7 {[%emt 0:00:05]} 18. Nd2 {[%emt 0:01:43]} Nb6 {[%emt 0:03:40]} 19. f4 {[%emt 0:01:49]} exd4 {[%emt 0:05:05]} 20. cxd4 {[%emt 0:00:11]} Nxc4 {[%emt 0:00:12]} 21. Ndxc4 {[%emt 0:00:53]} d5 {[%emt 0:04:48]} 22. Nxd5 {[%emt 0:01:16]} Nxd5 {[%emt 0:00:04]} 23. exd5 {[%emt 0:00:16]} Bf5 {[%emt 0:02:14]} 24. Ne3 {[%emt 0:00:38]} Be4 {[%emt 0:00:16]} 25. Rac1 {[%emt 0:01:01]} Rf7 {[%emt 0:00:07]} 26. Rc5 {[%emt 0:02:51]} Rd8 {[%emt 0:00:28]} 27. Rfc1 {[%emt 0:00:31]} Rdd7 {[%emt 0:00:13]} 28. Ra5 {[%emt 0:01:51]} Rfe7 {[%emt 0:02:08]} 29. Kf2 {[%emt 0:01:32]} Kf7 {[%emt 0:02:27]} 30. b4 {[%emt 0:02:08]} Bd3 {[%emt 0:04:56]} 31. g3 {[%emt 0:09:18]} Ke8 {[%emt 0:01:52]} 32. Rac5 {[%emt 0:01:33]} Kd8 {[%emt 0:01:46]} 33. Re1 {[%emt 0:02:45]} Rd6 {[%emt 0:02:34]} 34. a4 {[%emt 0:01:33]} Re4 {[%emt 0:02:22]} 35. Rd1 {[%emt 0:03:16]} Rxd4 {[%emt 0:01:26]} 36. a5 {[%emt 0:09:51]} b6 {[%emt 0:01:57]} 37. axb6 {[%emt 0:00:44]} cxb6 {[%emt 0:00:05]} 38. Rc3 {[%emt 0:00:09]} Rxb4 {[%emt 0:00:06]} 39. Rdxd3 {[%emt 0:00:46]} b5 {[%emt 0:00:34]} 40. Rc6 {[%emt 0:04:21]} Kd7 {[%emt 0:00:26]} 41. Rdc3 {[%emt 0:00:31]} Rb2+ {[%emt 0:00:22]} 42. Kf3 {[%emt 0:00:39]} a5 {[%emt 0:00:21]} 43. Rc7+ {[%emt 0:01:47]} Kd8 {[%emt 0:00:05]} 44. Rxh7 {[%emt 0:00:40]} Rd7 {[%emt 0:00:07]} 45. Rh8+ {[%emt 0:00:22]} Ke7 {[%emt 0:00:05]} 46. Rc6 {[%emt 0:00:16]} 1-0

[Event "Marshall CC FIDE Premier August 2024"]
[Site "New York"]
[Date "2024.08.03"]
[Round "1.5"]
[White "Hebbar, Eshaan"]
[Black "Yang, Daniel"]
[Result "1/2-1/2"]
[ECO "E94"]
[WhiteElo "2191"]
[BlackElo "1926"]
[Annotator "RC"]
[PlyCount "121"]
[EventDate "2024.08.02"]
[EventType "swiss"]
[EventCountry "USA"]
[SourceTitle "playchess.com"]
[Source "ChessBase"]
[SourceQuality "1"]
[TimeControl "5400+30"]

1. d4 {[%emt 0:10:47]} Nf6 {[%emt 0:00:07]} 2. c4 {[%emt 0:03:24]} g6 {[%emt 0:00:09]} 3. Nc3 {[%emt 0:00:04]} Bg7 {[%emt 0:00:04]} 4. e4 {[%emt 0:00:04]} d6 {[%emt 0:00:03]} 5. Nf3 {[%emt 0:00:05]} O-O {[%emt 0:00:04]} 6. Be2 {[%emt 0:00:03]} e5 {[%emt 0:00:09]} 7. O-O {[%emt 0:00:03]} Nbd7 {[%emt 0:00:15]} 8. Qc2 {[%emt 0:00:52]} Qe7 {[%emt 0:05:26]} 9. Be3 {[%emt 0:14:29]} c6 {[%emt 0:01:51]} 10. Rad1 {[%emt 0:01:43]} Ng4 {[%emt 0:01:29]} 11. Bg5 {[%emt 0:00:06]} f6 {[%emt 0:00:44]} 12. Bc1 {[%emt 0:03:29]} h5 {[%emt 0:01:09]} 13. h3 {[%emt 0:02:15]} Nh6 {[%emt 0:00:09]} 14. b3 {[%emt 0:04:10]} exd4 {[%emt 0:06:27]} 15. Nxd4 {[%emt 0:00:03]} Nc5 {[%emt 0:00:36]} 16. b4 {[%emt 0:02:31]} Ne6 {[%emt 0:02:20]} 17. Nf3 {[%emt 0:18:12]} f5 {[%emt 0:03:16]} 18. exf5 {[%emt 0:00:07]} Nxf5 {[%emt 0:01:45]} 19. Qd3 {[%emt 0:02:39]} a5 {[%emt 0:08:21]} 20. a3 {[%emt 0:00:46]} axb4 {[%emt 0:13:09]} 21. axb4 {[%emt 0:01:22]} Ned4 {[%emt 0:01:32]} 22. Rfe1 {[%emt 0:02:49]} Nxf3+ {[%emt 0:10:50]} 23. Bxf3 {[%emt 0:00:03]} Qh4 {[%emt 0:06:15]} 24. Ne4 {[%emt 0:03:21]} Nd4 {[%emt 0:02:43]} 25. Bg5 {[%emt 0:00:41]} Rxf3 {[%emt 0:07:39]} 26. Bxh4 {[%emt 0:01:14]} Rxd3 {[%emt 0:00:05]} 27. Rxd3 {[%emt 0:00:02]} Nc2 {[%emt 0:06:42]} 28. Rb1 {[%emt 0:04:55]} Bf5 {[%emt 0:01:58]} 29. f3 {[%emt 0:00:01]} Bd4+ {[%emt 0:02:04]} 30. Bf2 {[%emt 0:01:26]} d5 {[%emt 0:02:01]} 31. cxd5 {[%emt 0:01:34]} cxd5 {[%emt 0:00:36]} 32. Bxd4 {[%emt 0:08:57]} dxe4 {[%emt 0:00:19]} 33. Rdd1 {[%emt 0:00:10]} e3 {[%emt 0:08:02]} 34. Bc3 {[%emt 0:01:11]} Rc8 {[%emt 0:01:10]} 35. Be5 {[%emt 0:02:11]} e2 {[%emt 0:04:00]} 36. Rdc1 {[%emt 0:00:02]} e1=Q+ {[%emt 0:00:38]} 37. Rxe1 {[%emt 0:00:01]} Nxe1 {[%emt 0:00:02]} 38. Rxe1 {[%emt 0:00:02]} Kf7 {[%emt 0:00:54]} 39. Bd6 {[%emt 0:00:21]} Re8 {[%emt 0:00:27]} 40. Rc1 {[%emt 0:00:10]} Rc8 {[%emt 0:00:08]} 41. Ra1 {[%emt 0:00:15]} Rc6 {[%emt 0:00:26]} 42. Bc5 {[%emt 0:00:10]} Ra6 {[%emt 0:00:24]} 43. Rd1 {[%emt 0:00:18]} Rc6 {[%emt 0:00:19]} 44. Rd8 {[%emt 0:00:56]} Rc8 {[%emt 0:00:06]} 45. Rd2 {[%emt 0:00:24]} Be6 {[%emt 0:00:28]} 46. Kf2 {[%emt 0:00:11]} Rc6 {[%emt 0:02:38]} 47. Ke3 {[%emt 0:00:40]} b6 {[%emt 0:01:42]} 48. Bd4 {[%emt 0:00:08]} Rc4 {[%emt 0:00:54]} 49. Rb2 {[%emt 0:00:10]} b5 {[%emt 0:00:41]} 50. Bc5 {[%emt 0:00:17]} Bd5 {[%emt 0:00:52]} 51. Rd2 {[%emt 0:00:39]} Ke6 {[%emt 0:00:12]} 52. Re2 {[%emt 0:00:26]} Kf7 {[%emt 0:00:49]} 53. Kd2 {[%emt 0:00:14]} Be6 {[%emt 0:00:42]} 54. Re3 {[%emt 0:01:23]} g5 {[%emt 0:00:55]} 55. Rd3 {[%emt 0:02:59]} g4 {[%emt 0:00:31]} 56. fxg4 {[%emt 0:00:32]} hxg4 {[%emt 0:00:11]} 57. h4 {[%emt 0:00:12]} Bf5 {[%emt 0:00:49]} 58. Rc3 {[%emt 0:01:23]} Rxc3 {[%emt 0:00:10]} 59. Kxc3 {[%emt 0:00:02]} Kg6 {[%emt 0:00:25]} 60. g3 {[%emt 0:00:11]} Be6 {[%emt 0:00:17]} 61. Kd4 {[%emt 0:13:05]} 1/2-1/2

[Event "Marshall CC FIDE Premier August 2024"]
[Site "New York"]
[Date "2024.08.03"]
[Round "2.1"]
[White "Ling, Chenxuan"]
[Black "Bortnyk, Mykola"]
[Result "0-1"]
[ECO "E32"]
[WhiteElo "1941"]
[BlackElo "2432"]
[Annotator "RC"]
[PlyCount "102"]
[EventDate "2024.08.02"]
[EventType "swiss"]
[EventCountry "USA"]
[SourceTitle "playchess.com"]
[Source "ChessBase"]
[SourceQuality "1"]
[TimeControl "5400+30"]

1. d4 {[%emt 1:31:00]} Nf6 {[%emt 0:08:40]} 2. c4 {[%emt 0:00:00]} e6 {[%emt 0:00:06]} 3. Nc3 {[%emt 0:00:00]} Bb4 {[%emt 0:00:09]} 4. Qc2 {[%emt 0:00:00]} O-O {[%emt 0:00:15]} 5. e4 {[%emt 0:00:00]} d5 {[%emt 0:00:22]} 6. e5 {[%emt 0:00:00]} Ne4 {[%emt 0:00:02]} 7. Bd3 {[%emt 0:00:00]} c5 {[%emt 0:00:03]} 8. Nge2 {[%emt 0:00:00]} cxd4 {[%emt 0:00:15]} 9. Nxd4 {[%emt 0:00:00]} Nd7 {[%emt 0:00:36]} 10. Bf4 {[%emt 0:00:00]} Qb6 {[%emt 0:00:04]} 11. Nb3 {[%emt 0:00:00]} Qc7 {[%emt 0:00:03]} 12. O-O {[%emt 0:00:00]} Bxc3 {[%emt 0:01:06]} 13. bxc3 {[%emt 0:00:00]} f6 {[%emt 0:01:06]} 14. cxd5 {[%emt 0:00:00]} exd5 {[%emt 0:00:04]} 15. Bxe4 {[%emt 0:00:00]} dxe4 {[%emt 0:00:04]} 16. Qxe4 {[%emt 0:00:00]} Nxe5 {[%emt 0:08:07]} 17. Bxe5 {[%emt 0:00:00]} fxe5 {[%emt 0:00:49]} 18. Rae1 {[%emt 0:08:30]} Qf7 {[%emt 0:06:48]} 19. Re3 {[%emt 0:00:00]} Be6 {[%emt 0:00:29]} 20. Qxe5 {[%emt 0:00:00]} Bxb3 {[%emt 0:06:20]} 21. axb3 {[%emt 0:00:00]} Qxb3 {[%emt 0:00:06]} 22. Rfe1 {[%emt 0:00:00]} a5 {[%emt 0:01:05]} 23. Qe6+ {[%emt 0:00:00]} Qxe6 {[%emt 0:00:03]} 24. Rxe6 {[%emt 0:00:00]} a4 {[%emt 0:00:31]} 25. Kf1 {[%emt 0:00:00]} a3 {[%emt 0:00:41]} 26. Ra1 {[%emt 0:00:00]} Rfc8 {[%emt 0:01:49]} 27. Re3 {[%emt 0:00:00]} Kf7 {[%emt 0:00:43]} 28. Ke2 {[%emt 0:00:00]} b5 {[%emt 0:00:54]} 29. Ra2 {[%emt 0:00:00]} Kf6 {[%emt 0:01:53]} 30. Kd2 {[%emt 0:00:00]} g5 {[%emt 0:00:41]} 31. Re4 {[%emt 0:00:00]} Rc4 {[%emt 0:00:12]} 32. Re3 {[%emt 0:00:00]} h6 {[%emt 0:06:08]} 33. Kc2 {[%emt 0:00:00]} b4 {[%emt 0:00:09]} 34. Kb3 {[%emt 0:00:00]} Rxc3+ {[%emt 0:00:35]} 35. Rxc3 {[%emt 0:00:00]} bxc3 {[%emt 0:00:01]} 36. Kxc3 {[%emt 0:00:00]} Kf5 {[%emt 0:00:06]} 37. Kd4 {[%emt 0:00:00]} Kf4 {[%emt 0:00:11]} 38. Kd3 {[%emt 0:00:00]} Ra4 {[%emt 0:01:37]} 39. f3 {[%emt 0:00:00]} Ra8 {[%emt 0:00:18]} 40. Ke2 {[%emt 0:00:00]} Ra7 {[%emt 0:01:43]} 41. g3+ {[%emt 0:00:00]} Ke5 {[%emt 0:00:01]} 42. Ke3 {[%emt 0:00:00]} h5 {[%emt 0:00:11]} 43. h4 {[%emt 0:00:00]} gxh4 {[%emt 0:00:15]} 44. gxh4 {[%emt 0:00:00]} Kf5 {[%emt 0:00:14]} 45. Ke2 {[%emt 0:00:00]} Kf4 {[%emt 0:00:11]} 46. Kf2 {[%emt 0:00:00]} Ra8 {[%emt 0:00:12]} 47. Kg2 {[%emt 0:00:00]} Ke3 {[%emt 0:00:27]} 48. Kg3 {[%emt 0:00:00]} Kd3 {[%emt 0:00:06]} 49. f4 {[%emt 0:00:00]} Ke4 {[%emt 0:00:55]} 50. Re2+ {[%emt 0:00:00]} Kf5 {[%emt 0:00:03]} 51. Ra2 {[%emt 0:00:00]} Ra4 {[%emt 0:00:03]} 0-1

[Event "Marshall CC FIDE Premier August 2024"]
[Site "New York"]
[Date "2024.08.03"]
[Round "2.2"]
[White "Nakada, Akira"]
[Black "Venkatesh, Narayan"]
[Result "1-0"]
[ECO "A28"]
[WhiteElo "2417"]
[BlackElo "2116"]
[Annotator "RC"]
[PlyCount "93"]
[EventDate "2024.08.02"]
[EventType "swiss"]
[EventCountry "USA"]
[SourceTitle "playchess.com"]
[Source "ChessBase"]
[SourceQuality "1"]
[TimeControl "5400+30"]

1. c4 {[%emt 0:00:05]} e5 {[%emt 0:08:00]} 2. Nc3 {[%emt 0:00:11]} Nf6 {[%emt 0:00:01]} 3. Nf3 {[%emt 0:00:07]} Nc6 {[%emt 0:00:02]} 4. e4 {[%emt 0:00:14]} Bb4 {[%emt 0:00:15]} 5. d3 {[%emt 0:00:09]} d6 {[%emt 0:00:07]} 6. a3 {[%emt 0:00:05]} Bc5 {[%emt 0:00:08]} 7. b4 {[%emt 0:00:04]} Bb6 {[%emt 0:00:07]} 8. Na4 {[%emt 0:00:04]} Bd4 {[%emt 0:00:07]} 9. Rb1 {[%emt 0:00:18]} Bg4 {[%emt 0:00:06]} 10. Bd2 {[%emt 0:00:26]} a6 {[%emt 0:01:35]} 11. Be2 {[%emt 0:02:51]} Bxf3 {[%emt 0:00:11]} 12. Bxf3 {[%emt 0:00:05]} Ba7 {[%emt 0:00:04]} 13. Nc3 {[%emt 0:00:29]} Nd4 {[%emt 0:01:21]} 14. O-O {[%emt 0:00:08]} b5 {[%emt 0:01:47]} 15. Be3 {[%emt 0:02:46]} c6 {[%emt 0:02:47]} 16. a4 {[%emt 0:01:15]} O-O {[%emt 0:04:15]} 17. Kh1 {[%emt 0:07:01]} Qd7 {[%emt 0:06:58]} 18. h3 {[%emt 0:06:01]} h6 {[%emt 0:06:49]} 19. Be2 {[%emt 0:15:28]} Rfe8 {[%emt 0:05:08]} 20. cxb5 {[%emt 0:05:58]} cxb5 {[%emt 0:04:34]} 21. axb5 {[%emt 0:04:15]} axb5 {[%emt 0:02:42]} 22. Bg4 {[%emt 0:00:46]} Qb7 {[%emt 0:04:54]} 23. f4 {[%emt 0:08:55]} Ne6 {[%emt 0:16:36]} 24. Bxa7 {[%emt 0:03:42]} Rxa7 {[%emt 0:01:29]} 25. fxe5 {[%emt 0:00:21]} Nxg4 {[%emt 0:00:44]} 26. Qxg4 {[%emt 0:00:04]} dxe5 {[%emt 0:00:08]} 27. Nd5 {[%emt 0:00:03]} Rc8 {[%emt 0:14:16]} 28. Rf5 {[%emt 0:06:28]} Qb8 {[%emt 0:09:58]} 29. Rbf1 {[%emt 0:00:12]} Rc6 {[%emt 0:01:12]} 30. Rf6 {[%emt 0:04:49]} Nd4 {[%emt 0:04:56]} 31. Rxc6 {[%emt 0:00:10]} Nxc6 {[%emt 0:00:03]} 32. Rc1 {[%emt 0:02:23]} Qb7 {[%emt 0:01:13]} 33. Qf5 {[%emt 0:00:09]} Kh8 {[%emt 0:02:08]} 34. h4 {[%emt 0:00:17]} Ra8 {[%emt 0:01:12]} 35. h5 {[%emt 0:00:06]} Rc8 {[%emt 0:01:07]} 36. Rc5 {[%emt 0:01:04]} Kg8 {[%emt 0:00:57]} 37. Rxb5 {[%emt 0:04:46]} Qa8 {[%emt 0:00:31]} 38. Rc5 {[%emt 0:00:20]} Re8 {[%emt 0:00:29]} 39. Qd7 {[%emt 0:05:15]} Nd4 {[%emt 0:00:22]} 40. Rc7 {[%emt 0:00:52]} Rf8 {[%emt 0:00:00]} 41. Ne7+ {[%emt 0:00:18]} Kh7 {[%emt 0:00:30]} 42. Ng6 {[%emt 0:06:45]} Qa1+ {[%emt 0:00:12]} 43. Kh2 {[%emt 0:00:01]} Rg8 {[%emt 0:00:46]} 44. Qxf7 {[%emt 0:02:10]} Qe1 {[%emt 0:00:33]} 45. Qf6 {[%emt 0:03:02]} Qe3 {[%emt 0:00:39]} 46. Nxe5 {[%emt 0:00:40]} Qg5 {[%emt 0:00:44]} 47. Qg6+ {[%emt 0:00:05]} 1-0

[Event "Marshall CC FIDE Premier August 2024"]
[Site "New York"]
[Date "2024.08.03"]
[Round "2.3"]
[White "Morris-Suzuki, Alan H"]
[Black "Lin, Bryan Enming"]
[Result "0-1"]
[ECO "E90"]
[WhiteElo "1838"]
[BlackElo "2155"]
[Annotator "RC"]
[PlyCount "51"]
[EventDate "2024.08.02"]
[EventType "swiss"]
[EventCountry "USA"]
[SourceTitle "playchess.com"]
[Source "ChessBase"]
[SourceQuality "1"]
[TimeControl "5400+30"]

1. Nf3 {[%emt 0:00:02]} Nf6 {[%emt 0:00:39]} 2. c4 {[%emt 0:00:07]} g6 {[%emt 0:00:07]} 3. Nc3 {[%emt 0:00:03]} Bg7 {[%emt 0:01:26]} 4. e4 {[%emt 0:00:03]} d6 {[%emt 0:00:20]} 5. d4 {[%emt 0:00:03]} O-O {[%emt 0:00:10]} 6. h3 {[%emt 0:00:12]} c5 {[%emt 0:01:47]} 7. d5 {[%emt 0:00:03]} e6 {[%emt 0:00:50]} 8. Be2 {[%emt 0:01:13]} exd5 {[%emt 0:01:11]} 9. exd5 {[%emt 0:00:24]} Bf5 {[%emt 0:00:24]} 10. g4 {[%emt 0:06:24]} Be4 {[%emt 0:01:31]} 11. O-O {[%emt 0:00:06]} Bxf3 {[%emt 0:00:36]} 12. Bxf3 {[%emt 0:00:12]} Nbd7 {[%emt 0:06:09]} 13. a4 {[%emt 0:01:57]} Re8 {[%emt 0:02:00]} 14. g5 {[%emt 0:39:38]} Nh5 {[%emt 0:01:10]} 15. Ra3 {[%emt 0:09:21]} Bxc3 {[%emt 0:07:18]} 16. Rxc3 {[%emt 0:00:09]} Ng7 {[%emt 0:00:10]} 17. Bg4 {[%emt 0:02:59]} Ne5 {[%emt 0:06:45]} 18. b3 {[%emt 0:13:27]} f6 {[%emt 0:05:26]} 19. f4 {[%emt 0:03:15]} Nxg4 {[%emt 0:00:23]} 20. hxg4 {[%emt 0:02:10]} f5 {[%emt 0:01:05]} 21. Rh3 {[%emt 0:02:42]} Qd7 {[%emt 0:02:53]} 22. Rh2 {[%emt 0:09:32]} fxg4 {[%emt 0:01:03]} 23. f5 {[%emt 0:00:57]} g3 {[%emt 0:02:04]} 24. Rh3 {[%emt 0:02:14]} Nxf5 {[%emt 0:57:03]} 25. Qg4 {[%emt 0:00:55]} Qg7 {[%emt 0:00:00]} 26. Qd1 {[%emt 0:05:22]} 0-1